fUST/lending_fUST_20260429
["ID","MTS","AMOUNT","RATE_DAILY","PERIOD"]
[421342090,1777476632000,-178.0031792,7.999e-05,2]
[421342086,1777476632000,-500.0,7.999e-05,2]
[421342089,1777476632000,-432.05842717,7.999e-05,2]
[421342091,1777476632000,-4627.84647671,8e-05,2]
[421342087,1777476632000,-325.71882743,7.999e-05,2]
[421342096,1777476633000,-1905.85,8e-05,2]
[421342095,1777476633000,-2285.89680573,8e-05,2]
[421342093,1777476633000,-2049.00174,8e-05,2]
[421342092,1777476633000,-20533.99775466,8e-05,2]
[421342094,1777476633000,-2084.3014295,8e-05,2]
[421342165,1777476638000,-500.0,9.007e-05,2]
[421342158,1777476638000,-5000.0,9e-05,2]
[421342157,1777476638000,-5000.0,9e-05,2]
[421342154,1777476638000,-9788.1044704,9e-05,2]
[421342156,1777476638000,-5000.0,9e-05,2]
[421342145,1777476638000,-445.202766,8.951e-05,2]
[421342147,1777476638000,-537.6845,8.951e-05,2]
[421342146,1777476638000,-537.6845,8.951e-05,2]
[421342161,1777476638000,-500.0,9.007e-05,2]
[421342150,1777476638000,-500.0,8.976e-05,2]
[421342149,1777476638000,-720.0,8.975e-05,2]
[421342153,1777476638000,-2928.0908014,8.996e-05,2]
[421342164,1777476638000,-500.0,9.007e-05,2]
[421342155,1777476638000,-5000.0,9e-05,2]
[421342159,1777476638000,-500.0,9.006e-05,2]
[421342166,1777476638000,-500.0,9.007e-05,2]
[421342167,1777476638000,-500.0,9.007e-05,2]
[421342163,1777476638000,-500.0,9.007e-05,2]
[421342160,1777476638000,-557.5788265,9.006e-05,2]
[421342169,1777476638000,-500.0,9.007e-05,2]
[421342179,1777476638000,-151.5,9.007e-05,2]
[421342180,1777476638000,-500.0,9.007e-05,2]
[421342168,1777476638000,-500.0,9.007e-05,2]
[421342170,1777476638000,-500.0,9.007e-05,2]
[421342148,1777476638000,-2150.738,8.951e-05,2]
[421342174,1777476638000,-151.5,9.007e-05,2]
[421342162,1777476638000,-500.0,9.007e-05,2]
[421342151,1777476638000,-55944.4292971,8.996e-05,2]
[421342192,1777476638000,-644.79446246,9.226e-05,2]
[421342144,1777476638000,-162.380719,8.951e-05,2]
[421342171,1777476638000,-395.94805721,9.007e-05,2]
[421342119,1777476638000,-2707.5715113,8.159e-05,2]
[421342118,1777476638000,-312335.7157934,8e-05,2]
[421342123,1777476638000,-300.0,8.159e-05,2]
[421342120,1777476638000,-300.0,8.159e-05,2]
[421342121,1777476638000,-300.0,8.159e-05,2]
[421342122,1777476638000,-300.0,8.159e-05,2]
[421342125,1777476638000,-300.0,8.159e-05,2]
[421342128,1777476638000,-300.0,8.159e-05,2]
[421342126,1777476638000,-300.0,8.159e-05,2]
[421342124,1777476638000,-300.0,8.159e-05,2]
[421342127,1777476638000,-300.0,8.159e-05,2]
[421342130,1777476638000,-300.0,8.159e-05,2]
[421342141,1777476638000,-632.66439507,8.769e-05,2]
[421342140,1777476638000,-455.7724535,8.702e-05,2]
[421342133,1777476638000,-300.0,8.159e-05,2]
[421342129,1777476638000,-300.0,8.159e-05,2]
[421342131,1777476638000,-300.0,8.159e-05,2]
[421342136,1777476638000,-176.14187815,8.159e-05,2]
[421342132,1777476638000,-300.0,8.159e-05,2]
[421342134,1777476638000,-300.0,8.159e-05,2]
[421342138,1777476638000,-162.29817705,8.219e-05,2]
[421342137,1777476638000,-231.85453865,8.219e-05,2]
[421342139,1777476638000,-151.0,8.38e-05,2]
[421342135,1777476638000,-600.0,8.159e-05,2]
[421342142,1777476638000,-2199.1867837,8.934e-05,2]
[421342143,1777476638000,-1384.2659866,8.934e-05,2]
[421342152,1777476638000,-3104.0134066,8.996e-05,2]
[421342175,1777476638000,-560.25934333,9.007e-05,2]
[421342199,1777476638000,-151.0,9.341e-05,2]
[421342173,1777476638000,-500.0,9.007e-05,2]
[421342217,1777476638000,-649.0,9.551e-05,2]
[421342208,1777476638000,-242.042,9.55e-05,2]
[421342211,1777476638000,-166.0,9.551e-05,2]
[421342210,1777476638000,-156.0,9.551e-05,2]
[421342218,1777476638000,-167.0,9.551e-05,2]
[421342212,1777476638000,-167.0,9.551e-05,2]
[421342213,1777476638000,-156.0,9.551e-05,2]
[421342215,1777476638000,-159.22565296,9.551e-05,2]
[421342214,1777476638000,-167.0,9.551e-05,2]
[421342216,1777476638000,-172.0,9.551e-05,2]
[421342172,1777476638000,-151.5,9.007e-05,2]
[421342231,1777476638000,-649.0,9.551e-05,2]
[421342230,1777476638000,-341.0,9.551e-05,2]
[421342224,1777476638000,-341.0,9.551e-05,2]
[421342219,1777476638000,-341.0,9.551e-05,2]
[421342223,1777476638000,-237.65721298,9.551e-05,2]
[421342229,1777476638000,-341.0,9.551e-05,2]
[421342226,1777476638000,-341.0,9.551e-05,2]
[421342228,1777476638000,-649.0,9.551e-05,2]
[421342222,1777476638000,-649.0,9.551e-05,2]
[421342221,1777476638000,-341.0,9.551e-05,2]
[421342225,1777476638000,-649.0,9.551e-05,2]
[421342227,1777476638000,-649.0,9.551e-05,2]
[421342232,1777476638000,-341.0,9.551e-05,2]
[421342233,1777476638000,-341.0,9.551e-05,2]
[421342234,1777476638000,-649.0,9.551e-05,2]
[421342235,1777476638000,-341.0,9.551e-05,2]
[421342209,1777476638000,-166.0,9.551e-05,2]
[421342207,1777476638000,-242.042,9.55e-05,2]
[421342220,1777476638000,-649.0,9.551e-05,2]
[421342206,1777476638000,-500.0,9.533e-05,2]
[421342177,1777476638000,-500.0,9.007e-05,2]
[421342205,1777476638000,-773.2413689,9.501e-05,2]
[421342178,1777476638000,-151.5,9.007e-05,2]
[421342181,1777476638000,-151.5,9.007e-05,2]
[421342183,1777476638000,-161.50822447,9.007e-05,2]
[421342184,1777476638000,-441.59433291,9.007e-05,2]
[421342182,1777476638000,-500.0,9.007e-05,2]
[421342193,1777476638000,-500.0,9.28e-05,2]
[421342187,1777476638000,-500.0,9.007e-05,2]
[421342189,1777476638000,-578.20924308,9.061e-05,2]
[421342188,1777476638000,-469.49447973,9.007e-05,2]
[421342185,1777476638000,-500.0,9.007e-05,2]
[421342191,1777476638000,-621.78829552,9.171e-05,2]
[421342176,1777476638000,-202.25720741,9.007e-05,2]
[421342190,1777476638000,-599.60298507,9.116e-05,2]
[421342194,1777476638000,-668.65185757,9.281e-05,2]
[421342198,1777476638000,-151.0,9.341e-05,2]
[421342196,1777476638000,-151.0,9.341e-05,2]
[421342197,1777476638000,-151.0,9.341e-05,2]
[421342201,1777476638000,-745.65223616,9.446e-05,2]
[421342203,1777476638000,-367.46489904,9.499e-05,2]
[421342200,1777476638000,-719.04747942,9.391e-05,2]
[421342204,1777476638000,-2230.315306,9.499e-05,2]
[421342202,1777476638000,-461.67526834,9.499e-05,2]
[421342186,1777476638000,-500.0,9.007e-05,2]
[421342195,1777476638000,-693.3919763,9.336e-05,2]
[421342268,1777476639000,-341.0,9.551e-05,2]
[421342267,1777476639000,-341.0,9.551e-05,2]
[421342270,1777476639000,-341.0,9.551e-05,2]
[421342271,1777476639000,-341.0,9.551e-05,2]
[421342266,1777476639000,-341.0,9.551e-05,2]
[421342272,1777476639000,-341.0,9.551e-05,2]
[421342273,1777476639000,-341.0,9.551e-05,2]
[421342265,1777476639000,-341.0,9.551e-05,2]
[421342269,1777476639000,-341.0,9.551e-05,2]
[421342264,1777476639000,-341.0,9.551e-05,2]
[421342274,1777476639000,-341.0,9.551e-05,2]
[421342277,1777476639000,-341.0,9.551e-05,2]
[421342284,1777476639000,-341.0,9.551e-05,2]
[421342276,1777476639000,-341.0,9.551e-05,2]
[421342275,1777476639000,-341.0,9.551e-05,2]
[421342282,1777476639000,-341.0,9.551e-05,2]
[421342280,1777476639000,-341.0,9.551e-05,2]
[421342281,1777476639000,-341.0,9.551e-05,2]
[421342283,1777476639000,-341.0,9.551e-05,2]
[421342279,1777476639000,-341.0,9.551e-05,2]
[421342285,1777476639000,-341.0,9.551e-05,2]
[421342286,1777476639000,-341.0,9.551e-05,2]
[421342287,1777476639000,-341.0,9.551e-05,2]
[421342262,1777476639000,-341.0,9.551e-05,2]
[421342297,1777476639000,-341.0,9.551e-05,2]
[421342278,1777476639000,-341.0,9.551e-05,2]
[421342263,1777476639000,-341.0,9.551e-05,2]
[421342333,1777476639000,-2212.0,9.802e-05,2]
[421342259,1777476639000,-341.0,9.551e-05,2]
[421342289,1777476639000,-341.0,9.551e-05,2]
[421342236,1777476639000,-649.0,9.551e-05,2]
[421342243,1777476639000,-341.0,9.551e-05,2]
[421342237,1777476639000,-341.0,9.551e-05,2]
[421342244,1777476639000,-649.0,9.551e-05,2]
[421342242,1777476639000,-649.0,9.551e-05,2]
[421342238,1777476639000,-649.0,9.551e-05,2]
[421342239,1777476639000,-341.0,9.551e-05,2]
[421342240,1777476639000,-649.0,9.551e-05,2]
[421342241,1777476639000,-341.0,9.551e-05,2]
[421342245,1777476639000,-341.0,9.551e-05,2]
[421342254,1777476639000,-649.0,9.551e-05,2]
[421342251,1777476639000,-649.0,9.551e-05,2]
[421342247,1777476639000,-341.0,9.551e-05,2]
[421342249,1777476639000,-649.0,9.551e-05,2]
[421342246,1777476639000,-649.0,9.551e-05,2]
[421342253,1777476639000,-649.0,9.551e-05,2]
[421342256,1777476639000,-649.0,9.551e-05,2]
[421342248,1777476639000,-341.0,9.551e-05,2]
[421342255,1777476639000,-649.0,9.551e-05,2]
[421342250,1777476639000,-341.0,9.551e-05,2]
[421342257,1777476639000,-666.70715785,9.551e-05,2]
[421342252,1777476639000,-649.0,9.551e-05,2]
[421342260,1777476639000,-341.0,9.551e-05,2]
[421342261,1777476639000,-341.0,9.551e-05,2]
[421342258,1777476639000,-341.0,9.551e-05,2]
[421342288,1777476639000,-341.0,9.551e-05,2]
[421342344,1777476639000,-500.0,9.997e-05,2]
[421342291,1777476639000,-341.0,9.551e-05,2]
[421342322,1777476639000,-500.0,9.554e-05,2]
[421342325,1777476639000,-649.0,9.577e-05,2]
[421342331,1777476639000,-792.0,9.7e-05,2]
[421342324,1777476639000,-166.0,9.577e-05,2]
[421342329,1777476639000,-166.0,9.577e-05,2]
[421342332,1777476639000,-300.0,9.8e-05,2]
[421342323,1777476639000,-801.85129955,9.556e-05,2]
[421342326,1777476639000,-166.0,9.577e-05,2]
[421342334,1777476639000,-1435.583,9.802e-05,2]
[421342330,1777476639000,-272.61022012,9.577e-05,2]
[421342327,1777476639000,-649.0,9.577e-05,2]
[421342328,1777476639000,-159.86712527,9.577e-05,2]
[421342336,1777476639000,-442.0,9.802e-05,2]
[421342346,1777476639000,-1215.81720237,0.0001,2]
[421342335,1777476639000,-646.0,9.802e-05,2]
[421342347,1777476639000,-406.50920865,0.0001,2]
[421342341,1777476639000,-864.0,9.872e-05,2]
[421342340,1777476639000,-500.0,9.856e-05,2]
[421342342,1777476639000,-328.39934912,9.879e-05,2]
[421342343,1777476639000,-267.61251487,9.997e-05,2]
[421342339,1777476639000,-500.0,9.828e-05,2]
[421342345,1777476639000,-500.0,9.997e-05,2]
[421342337,1777476639000,-740.0,9.802e-05,2]
[421342348,1777476639000,-33624.16722453,0.0001,2]
[421342290,1777476639000,-341.0,9.551e-05,2]
[421342316,1777476639000,-341.0,9.551e-05,2]
[421342317,1777476639000,-341.0,9.551e-05,2]
[421342338,1777476639000,-185.0,9.802e-05,2]
[421342314,1777476639000,-341.0,9.551e-05,2]
[421342296,1777476639000,-341.0,9.551e-05,2]
[421342319,1777476639000,-341.0,9.551e-05,2]
[421342292,1777476639000,-341.0,9.551e-05,2]
[421342295,1777476639000,-341.0,9.551e-05,2]
[421342294,1777476639000,-341.0,9.551e-05,2]
[421342309,1777476639000,-341.0,9.551e-05,2]
[421342300,1777476639000,-341.0,9.551e-05,2]
[421342299,1777476639000,-341.0,9.551e-05,2]
[421342298,1777476639000,-341.0,9.551e-05,2]
[421342301,1777476639000,-341.0,9.551e-05,2]
[421342303,1777476639000,-341.0,9.551e-05,2]
[421342302,1777476639000,-341.0,9.551e-05,2]
[421342293,1777476639000,-341.0,9.551e-05,2]
[421342306,1777476639000,-341.0,9.551e-05,2]
[421342308,1777476639000,-341.0,9.551e-05,2]
[421342320,1777476639000,-156.34728933,9.551e-05,2]
[421342315,1777476639000,-341.0,9.551e-05,2]
[421342313,1777476639000,-341.0,9.551e-05,2]
[421342311,1777476639000,-341.0,9.551e-05,2]
[421342321,1777476639000,-176.14187814,9.552e-05,2]
[421342310,1777476639000,-341.0,9.551e-05,2]
[421342307,1777476639000,-341.0,9.551e-05,2]
[421342304,1777476639000,-341.0,9.551e-05,2]
[421342305,1777476639000,-341.0,9.551e-05,2]
[421342312,1777476639000,-341.0,9.551e-05,2]
[421342318,1777476639000,-341.0,9.551e-05,2]
[421342374,1777476640000,-5000.0,0.00010959,2]
[421342372,1777476640000,-5000.0,0.00010959,2]
[421342378,1777476640000,-500.0,0.00010959,2]
[421342373,1777476640000,-5000.0,0.00010959,2]
[421342377,1777476640000,-500.0,0.00010959,2]
[421342384,1777476640000,-500.0,0.00010959,2]
[421342375,1777476640000,-2362.49697,0.00010959,2]
[421342383,1777476640000,-500.0,0.00010959,2]
[421342380,1777476640000,-500.0,0.00010959,2]
[421342379,1777476640000,-500.0,0.00010959,2]
[421342381,1777476640000,-500.0,0.00010959,2]
[421342382,1777476640000,-500.0,0.00010959,2]
[421342386,1777476640000,-500.0,0.00010959,2]
[421342396,1777476640000,-1000.0,0.00011047,2]
[421342397,1777476640000,-1161.17956408,0.00011093,2]
[421342368,1777476640000,-513.06283256,0.00010865,2]
[421342388,1777476640000,-500.0,0.00010959,2]
[421342376,1777476640000,-200.0,0.00010959,2]
[421342370,1777476640000,-150.362,0.00010925,2]
[421342359,1777476640000,-1000.0,0.00010545,2]
[421342362,1777476640000,-500.0,0.00010556,2]
[421342389,1777476640000,-500.0,0.00010959,2]
[421342349,1777476640000,-478.75725327,0.00010047,2]
[421342350,1777476640000,-2312.83697232,0.00010047,2]
[421342357,1777476640000,-155.0,0.00010505,2]
[421342351,1777476640000,-500.0,0.00010102,2]
[421342353,1777476640000,-3886.00904221,0.00010289,2]
[421342356,1777476640000,-500.0,0.00010499,2]
[421342352,1777476640000,-2065.0,0.000102,2]
[421342358,1777476640000,-1000.0,0.00010545,2]
[421342355,1777476640000,-151.0,0.00010475,2]
[421342354,1777476640000,-151.0,0.00010475,2]
[421342361,1777476640000,-500.0,0.00010556,2]
[421342360,1777476640000,-500.0,0.00010556,2]
[421342371,1777476640000,-150.0,0.00010925,2]
[421342363,1777476640000,-209.22059943,0.00010556,2]
[421342369,1777476640000,-150.0,0.00010925,2]
[421342366,1777476640000,-45778.80960374,0.00010712,2]
[421342365,1777476640000,-2398.4119403,0.00010595,2]
[421342367,1777476640000,-1000.0,0.0001086,2]
[421342364,1777476640000,-496.47127164,0.00010595,2]
[421342385,1777476640000,-329.18123705,0.00010959,2]
[421342403,1777476640000,-151.0,0.00011181,2]
[421342394,1777476640000,-500.0,0.00010959,2]
[421342420,1777476640000,-1345.21084813,0.000119,5]
[421342415,1777476640000,-378.49416509,0.00011879,2]
[421342419,1777476640000,-14102.655601,0.00011892,2]
[421342414,1777476640000,-270.0,0.000118,2]
[421342418,1777476640000,-10898.862361,0.00011892,2]
[421342421,1777476640000,-500.0,0.00011918,2]
[421342416,1777476640000,-2290.571124,0.00011892,2]
[421342395,1777476640000,-500.0,0.00011,2]
[421342411,1777476640000,-1500.0,0.00011652,2]
[421342424,1777476640000,-500.0,0.00011918,2]
[421342429,1777476640000,-500.20900231,0.00011918,2]
[421342428,1777476640000,-502.35243032,0.00011918,2]
[421342425,1777476640000,-520.25865544,0.00011918,2]
[421342427,1777476640000,-500.0,0.00011918,2]
[421342431,1777476640000,-220.6724337,0.00011918,2]
[421342432,1777476640000,-410.85709784,0.00011918,2]
[421342430,1777476640000,-500.0,0.00011918,2]
[421342433,1777476640000,-167.15443823,0.00011918,2]
[421342426,1777476640000,-500.0,0.00011918,2]
[421342413,1777476640000,-2579.17784983,0.00011691,2]
[421342417,1777476640000,-12302.486763,0.00011892,2]
[421342423,1777476640000,-500.0,0.00011918,2]
[421342422,1777476640000,-500.0,0.00011918,2]
[421342390,1777476640000,-500.0,0.00010959,2]
[421342393,1777476640000,-500.0,0.00010959,2]
[421342387,1777476640000,-500.0,0.00010959,2]
[421342391,1777476640000,-500.0,0.00010959,2]
[421342399,1777476640000,-1000.0,0.00011104,2]
[421342400,1777476640000,-1000.0,0.00011104,2]
[421342398,1777476640000,-345.883225,0.00011093,2]
[421342407,1777476640000,-155.0,0.0001146,2]
[421342392,1777476640000,-400.0,0.00010959,2]
[421342402,1777476640000,-2487.15318209,0.00011143,2]
[421342401,1777476640000,-1000.0,0.00011104,2]
[421342410,1777476640000,-1500.0,0.00011652,2]
[421342408,1777476640000,-162.00000001,0.000115,2]
[421342405,1777476640000,-458.7879138,0.00011181,2]
[421342412,1777476640000,-1500.0,0.00011652,2]
[421342409,1777476640000,-1500.0,0.00011595,2]
[421342404,1777476640000,-218.7963232,0.00011181,2]
[421342406,1777476640000,-456.0084076,0.00011181,2]
[421342457,1777476641000,-500.0,0.0001254,2]
[421342455,1777476641000,-483.91966993,0.0001254,2]
[421342460,1777476641000,-155.09360401,0.00012709,2]
[421342458,1777476641000,-500.0,0.0001254,2]
[421342459,1777476641000,-1000.0,0.00012592,2]
[421342461,1777476641000,-1000.0,0.00012715,2]
[421342462,1777476641000,-209.43753413,0.00012729,2]
[421342463,1777476641000,-2210.0,0.00012802,2]
[421342466,1777476641000,-442.0,0.00012802,2]
[421342475,1777476641000,-412.40833943,0.000129,2]
[421342465,1777476641000,-646.0,0.00012802,2]
[421342467,1777476641000,-740.0,0.00012802,2]
[421342471,1777476641000,-500.0,0.00012873,2]
[421342470,1777476641000,-500.0,0.00012873,2]
[421342472,1777476641000,-500.0,0.00012873,2]
[421342469,1777476641000,-500.0,0.00012873,2]
[421342468,1777476641000,-185.0,0.00012802,2]
[421342473,1777476641000,-412.40833946,0.000129,2]
[421342464,1777476641000,-1410.0,0.00012802,2]
[421342453,1777476641000,-1000.0,0.00012466,2]
[421342481,1777476641000,-1000.0,0.00013088,2]
[421342454,1777476641000,-1000.0,0.00012466,2]
[421342434,1777476641000,-500.0,0.00011918,2]
[421342435,1777476641000,-500.0,0.00011918,2]
[421342437,1777476641000,-244.0,0.00011946,2]
[421342438,1777476641000,-16790.0,0.00012,2]
[421342440,1777476641000,-151.0,0.00012002,2]
[421342439,1777476641000,-6302.7925178,0.00012,2]
[421342436,1777476641000,-1000.0,0.00011946,2]
[421342441,1777476641000,-456.0084076,0.00012003,2]
[421342445,1777476641000,-51385.218332,0.00012134,2]
[421342450,1777476641000,-2000.0,0.000122,2]
[421342446,1777476641000,-1725.05247197,0.00012143,2]
[421342449,1777476641000,-2000.0,0.000122,2]
[421342442,1777476641000,-500.0,0.00012044,2]
[421342448,1777476641000,-2000.0,0.000122,2]
[421342444,1777476641000,-254.374668,0.000121,2]
[421342447,1777476641000,-500.0,0.00012167,2]
[421342443,1777476641000,-500.65966177,0.00012062,2]
[421342452,1777476641000,-151.0,0.00012398,2]
[421342451,1777476641000,-2674.60743027,0.00012239,2]
[421342456,1777476641000,-500.0,0.0001254,2]
[421342476,1777476641000,-209.43753413,0.00012983,7]
[421342490,1777476641000,-1000.0,0.00013421,2]
[421342484,1777476641000,-492.0,0.0001314,2]
[421342499,1777476641000,-1500.0,0.00013636,2]
[421342501,1777476641000,-500.0,0.00013698,2]
[421342506,1777476641000,-500.0,0.00013698,2]
[421342505,1777476641000,-500.0,0.00013698,2]
[421342508,1777476641000,-500.0,0.00013698,2]
[421342507,1777476641000,-609.62077133,0.00013698,2]
[421342509,1777476641000,-500.0,0.00013698,2]
[421342514,1777476641000,-500.0,0.00013698,2]
[421342500,1777476641000,-499.45526681,0.00013688,2]
[421342511,1777476641000,-500.0,0.00013698,2]
[421342512,1777476641000,-500.0,0.00013698,2]
[421342515,1777476641000,-500.0,0.00013698,2]
[421342516,1777476641000,-500.0,0.00013698,2]
[421342517,1777476641000,-500.0,0.00013698,2]
[421342518,1777476641000,-500.0,0.00013698,2]
[421342520,1777476641000,-156.0,0.00013699,2]
[421342519,1777476641000,-540.4,0.00013698,2]
[421342482,1777476641000,-1000.0,0.00013088,2]
[421342510,1777476641000,-500.0,0.00013698,2]
[421342503,1777476641000,-500.0,0.00013698,2]
[421342513,1777476641000,-500.0,0.00013698,2]
[421342497,1777476641000,-920.22277549,0.00013636,2]
[421342502,1777476641000,-500.0,0.00013698,2]
[421342480,1777476641000,-1000.0,0.00013088,2]
[421342474,1777476641000,-412.40833943,0.000129,2]
[421342478,1777476641000,-1500.0,0.00013014,2]
[421342477,1777476641000,-1500.0,0.00013014,2]
[421342483,1777476641000,-1000.0,0.0001314,2]
[421342485,1777476641000,-1500.0,0.0001314,2]
[421342487,1777476641000,-1500.0,0.00013263,2]
[421342486,1777476641000,-172.89,0.00013157,2]
[421342479,1777476641000,-171.75,0.00013025,2]
[421342488,1777476641000,-209.43753413,0.00013365,14]
[421342492,1777476641000,-1000.0,0.00013421,2]
[421342491,1777476641000,-1000.0,0.00013421,2]
[421342493,1777476641000,-175.21,0.00013427,2]
[421342494,1777476641000,-173.09496923,0.00013562,2]
[421342496,1777476641000,-178.38,0.00013581,2]
[421342495,1777476641000,-2000.0,0.00013562,2]
[421342498,1777476641000,-1500.0,0.00013636,2]
[421342489,1777476641000,-155.0,0.0001337,2]
[421342504,1777476641000,-500.0,0.00013698,2]
[421342557,1777476642000,-4000.0,0.00015754,2]
[421342559,1777476642000,-1410.0,0.00015802,2]
[421342555,1777476642000,-160.0,0.00015606,2]
[421342560,1777476642000,-646.0,0.00015802,2]
[421342561,1777476642000,-442.0,0.00015802,2]
[421342553,1777476642000,-3733.15815054,0.000156,2]
[421342551,1777476642000,-3500.0,0.00015206,2]
[421342563,1777476642000,-185.0,0.00015802,2]
[421342558,1777476642000,-3733.15815054,0.000158,2]
[421342562,1777476642000,-740.0,0.00015802,2]
[421342554,1777476642000,-160.0,0.00015606,2]
[421342565,1777476642000,-3733.15815054,0.000159,2]
[421342571,1777476642000,-5054.567054,0.00016,2]
[421342576,1777476642000,-325.5277396,0.00016053,2]
[421342567,1777476642000,-1000.0,0.000159,2]
[421342577,1777476642000,-5000.0,0.0001606,2]
[421342568,1777476642000,-1000.0,0.000159,2]
[421342569,1777476642000,-530.15808188,0.00015938,2]
[421342570,1777476642000,-255.03237857,0.00015968,2]
[421342572,1777476642000,-151.3566208,0.00016033,2]
[421342573,1777476642000,-325.0009202,0.00016053,2]
[421342574,1777476642000,-325.5277396,0.00016053,2]
[421342579,1777476642000,-3733.15815054,0.000161,2]
[421342552,1777476642000,-151.8325583,0.00015227,2]
[421342575,1777476642000,-324.2716972,0.00016053,2]
[421342549,1777476642000,-500.0,0.00015065,2]
[421342536,1777476642000,-2000.0,0.00014184,2]
[421342548,1777476642000,-200.0,0.00015,7]
[421342521,1777476642000,-500.0,0.00013699,2]
[421342522,1777476642000,-1000.0,0.00013699,2]
[421342523,1777476642000,-817.3197376,0.00013699,2]
[421342524,1777476642000,-3419.990953,0.00013699,2]
[421342526,1777476642000,-1000.0,0.00013699,2]
[421342590,1777476642000,-157.949039,0.00016438,2]
[421342537,1777476642000,-2000.0,0.00014184,2]
[421342538,1777476642000,-15926.24458059,0.00014449,21]
[421342525,1777476642000,-2000.0,0.00013699,7]
[421342529,1777476642000,-1500.0,0.00013969,2]
[421342530,1777476642000,-500.67135315,0.00013969,2]
[421342532,1777476642000,-1500.0,0.00013969,2]
[421342527,1777476642000,-1089.85603539,0.00013811,2]
[421342534,1777476642000,-412.40833943,0.00014073,2]
[421342535,1777476642000,-2500.0,0.0001411,2]
[421342528,1777476642000,-428.58898106,0.00013879,2]
[421342539,1777476642000,-1000.0,0.00014454,2]
[421342540,1777476642000,-791.0,0.00014454,2]
[421342541,1777476642000,-2000.0,0.00014517,2]
[421342543,1777476642000,-3000.0,0.00014658,2]
[421342542,1777476642000,-1163.15065932,0.00014517,2]
[421342550,1777476642000,-1002.775764,0.00015068,2]
[421342545,1777476642000,-400.37355857,0.000149,2]
[421342544,1777476642000,-162.0,0.000149,4]
[421342547,1777476642000,-400.37355856,0.000149,2]
[421342546,1777476642000,-400.37355856,0.000149,2]
[421342589,1777476642000,-170.632735,0.00016438,2]
[421342564,1777476642000,-478.68379702,0.00015879,2]
[421342578,1777476642000,-412.40833943,0.00016077,2]
[421342613,1777476642000,-157.949039,0.00016438,2]
[421342609,1777476642000,-157.949039,0.00016438,2]
[421342612,1777476642000,-170.632735,0.00016438,2]
[421342610,1777476642000,-170.632735,0.00016438,2]
[421342616,1777476642000,-170.632735,0.00016438,2]
[421342624,1777476642000,-170.632735,0.00016438,2]
[421342623,1777476642000,-157.949039,0.00016438,2]
[421342618,1777476642000,-170.632735,0.00016438,2]
[421342626,1777476642000,-157.949039,0.00016438,2]
[421342620,1777476642000,-170.632735,0.00016438,2]
[421342625,1777476642000,-157.949039,0.00016438,2]
[421342617,1777476642000,-157.949039,0.00016438,2]
[421342611,1777476642000,-157.949039,0.00016438,2]
[421342619,1777476642000,-157.949039,0.00016438,2]
[421342622,1777476642000,-170.632735,0.00016438,2]
[421342629,1777476642000,-290.074909,0.00016438,2]
[421342635,1777476642000,-290.074909,0.00016438,2]
[421342636,1777476642000,-290.074909,0.00016438,2]
[421342637,1777476642000,-290.074909,0.00016438,2]
[421342628,1777476642000,-157.949047,0.00016438,2]
[421342631,1777476642000,-290.074909,0.00016438,2]
[421342630,1777476642000,-290.074909,0.00016438,2]
[421342632,1777476642000,-290.074909,0.00016438,2]
[421342634,1777476642000,-290.074909,0.00016438,2]
[421342633,1777476642000,-290.074909,0.00016438,2]
[421342581,1777476642000,-3733.15815054,0.000162,2]
[421342621,1777476642000,-157.949039,0.00016438,2]
[421342608,1777476642000,-170.632735,0.00016438,2]
[421342627,1777476642000,-170.632742,0.00016438,2]
[421342606,1777476642000,-170.632735,0.00016438,2]